fUSD/lending_fUSD_20250105
["ID","MTS","AMOUNT","RATE_DAILY","PERIOD"]
[347755953,1736094654975,-2154.529193,9.589e-05,2]
[347755954,1736094654985,-573.87,9.589e-05,2]
[347755955,1736094654997,-3065.2,9.589e-05,2]
[347755956,1736094655008,-585.92,9.589e-05,2]
[347755957,1736094655019,-500.0,9.589e-05,2]
[347755958,1736094655029,-765.52,9.589e-05,2]
[347755959,1736094655040,-640.34,9.589e-05,2]
[347755960,1736094655050,-3836.73,9.589e-05,2]
[347755961,1736094655061,-633.45,9.589e-05,2]
[347755962,1736094655072,-1291.16,9.589e-05,2]
[347755963,1736094655082,-1192.98,9.589e-05,2]
[347755964,1736094655093,-2011.44575,9.589e-05,2]
[347755965,1736094655103,-733.94,9.589e-05,2]
[347755966,1736094655113,-668.19,9.589e-05,2]
[347755967,1736094655123,-722.24,9.589e-05,2]
[347755968,1736094655134,-525.52,9.589e-05,2]
[347755969,1736094655148,-2191.22,9.589e-05,2]
[347755970,1736094655162,-1871.54,9.589e-05,2]
[347755971,1736094655178,-1429.21,9.589e-05,2]
[347755972,1736094655190,-1747.17,9.589e-05,2]
[347755973,1736094655204,-6128.46,9.589e-05,2]
[347755974,1736094655218,-554.84,9.589e-05,2]
[347755975,1736094655232,-813.74,9.589e-05,2]
[347755976,1736094655245,-500.0,9.589e-05,2]
[347755977,1736094655260,-1657.86,9.589e-05,2]
[347755978,1736094655272,-515.2,9.589e-05,2]
[347755979,1736094655283,-3771.13,9.589e-05,2]
[347755980,1736094655296,-500.0,9.589e-05,2]
[347755981,1736094655309,-823.18,9.589e-05,2]
[347755982,1736094655323,-902.42,9.589e-05,2]
[347755983,1736094655337,-795.93,9.589e-05,2]
[347755984,1736094655352,-500.0,9.589e-05,2]
[347755985,1736094655368,-710.7,9.589e-05,2]
[347755986,1736094655381,-1012.76,9.589e-05,2]
[347755987,1736094655395,-890.9,9.589e-05,2]
[347755988,1736094655410,-1433.4,9.589e-05,2]
[347755989,1736094655427,-5091.48,9.589e-05,2]
[347755990,1736094655441,-500.0,9.589e-05,2]
[347755991,1736094655456,-4235.77,9.589e-05,2]
[347755992,1736094655470,-1053.35,9.589e-05,2]
[347755993,1736094655484,-992.85,9.589e-05,2]
[347755994,1736094655496,-624.79,9.589e-05,2]
[347755995,1736094655508,-633.76,9.589e-05,2]
[347755996,1736094655522,-578.47,9.589e-05,2]
[347755997,1736094655537,-2200.96,9.589e-05,2]
[347755998,1736094655548,-1537.22,9.589e-05,2]
[347755999,1736094655559,-900.08,9.589e-05,2]
[347756000,1736094655571,-4458.65,9.589e-05,2]
[347756001,1736094655586,-1934.39,9.589e-05,2]
[347756002,1736094655599,-1315.15,9.589e-05,2]
[347756003,1736094655610,-500.0,9.589e-05,2]
[347756004,1736094655621,-546.5,9.589e-05,2]
[347756005,1736094655634,-510.63,9.589e-05,2]
[347756006,1736094655647,-644.92037417,9.589e-05,2]
[347756007,1736094655660,-748.91,9.589e-05,2]
[347756008,1736094655671,-3147.69,9.589e-05,2]
[347756009,1736094655684,-500.0,9.589e-05,2]
[347756010,1736094655696,-500.0,9.589e-05,2]
[347756011,1736094655708,-571.68,9.589e-05,2]
[347756012,1736094655719,-500.0,9.589e-05,2]
[347756013,1736094655732,-500.0,9.589e-05,2]
[347756014,1736094655745,-857.37,9.589e-05,2]
[347756015,1736094655758,-772.45,9.589e-05,2]
[347756016,1736094655770,-500.0,9.589e-05,2]
[347756017,1736094655783,-2261.04,9.589e-05,2]
[347756018,1736094655795,-1517.49,9.589e-05,2]
[347756019,1736094655807,-574.97,9.589e-05,2]
[347756020,1736094655820,-1136.66,9.589e-05,2]
[347756021,1736094655832,-601.24,9.589e-05,2]
[347756022,1736094655844,-3679.45,9.589e-05,2]
[347756023,1736094655856,-500.0,9.589e-05,2]
[347756024,1736094655868,-150.925515,9.589e-05,2]
[347756025,1736094655880,-801.92,9.589e-05,2]
[347756026,1736094655892,-2296.67,9.589e-05,2]
[347756027,1736094655904,-716.67,9.589e-05,2]
[347756028,1736094655916,-511.65,9.589e-05,2]
[347756029,1736094655927,-500.0,9.589e-05,2]
[347756030,1736094655939,-1000.95,9.589e-05,2]
[347756031,1736094655951,-2823.47,9.589e-05,2]
[347756032,1736094655962,-869.41,9.589e-05,2]
[347756033,1736094655974,-702.57,9.589e-05,2]
[347756034,1736094655986,-1961.5,9.589e-05,2]
[347756035,1736094655998,-1511.92,9.589e-05,2]
[347756036,1736094656010,-980.35,9.589e-05,2]
[347756037,1736094656023,-1573.26,9.589e-05,2]
[347756038,1736094656038,-716.72,9.589e-05,2]
[347756039,1736094656050,-3227.6,9.589e-05,2]
[347756040,1736094656062,-685.49,9.589e-05,2]
[347756041,1736094656074,-812.36,9.589e-05,2]
[347756042,1736094656086,-1820.78,9.589e-05,2]
[347756043,1736094656098,-2219.13,9.589e-05,2]
[347756044,1736094656109,-574.8,9.589e-05,2]
[347756045,1736094656121,-826.26,9.589e-05,2]
[347756046,1736094656133,-1688.51,9.589e-05,2]
[347756047,1736094656144,-1052.05,9.589e-05,2]
[347756048,1736094656157,-3518.04,9.589e-05,2]
[347756049,1736094656169,-1016.28,9.589e-05,2]
[347756050,1736094656181,-659.66,9.589e-05,2]
[347756051,1736094656192,-500.0,9.589e-05,2]
[347756052,1736094656205,-500.0,9.589e-05,2]
[347756053,1736094656218,-500.0,9.589e-05,2]
[347756054,1736094656230,-588.33,9.589e-05,2]
[347756055,1736094656243,-753.31,9.589e-05,2]
[347756056,1736094656255,-2262.5,9.589e-05,2]
[347756057,1736094656267,-500.0,9.589e-05,2]
[347756058,1736094656279,-500.0,9.589e-05,2]
[347756059,1736094656292,-6438.35,9.589e-05,2]
[347756060,1736094656305,-150.133036,9.589e-05,2]
[347756061,1736094656317,-874.96,9.589e-05,2]
[347756062,1736094656328,-913.17,9.589e-05,2]
[347756063,1736094656340,-1116.37,9.589e-05,2]
[347756064,1736094656353,-919.19,9.589e-05,2]
[347756065,1736094656365,-500.0,9.589e-05,2]
[347756066,1736094656376,-648.72,9.589e-05,2]
[347756067,1736094656388,-1766.84,9.589e-05,2]
[347756068,1736094656400,-758.57,9.589e-05,2]
[347756069,1736094656414,-506.41,9.589e-05,2]
[347756070,1736094656426,-151.072624,9.589e-05,2]
[347756071,1736094656437,-1972.52,9.589e-05,2]
[347756072,1736094656451,-863.83,9.589e-05,2]
[347756073,1736094656463,-500.0,9.589e-05,2]
[347756074,1736094656474,-500.0,9.589e-05,2]
[347756075,1736094656489,-578.88538558,9.589e-05,2]
[347756076,1736094656501,-500.0,9.589e-05,2]
[347756077,1736094656514,-500.0,9.589e-05,2]
[347756078,1736094656526,-962.38,9.589e-05,2]
[347756079,1736094656538,-500.0,9.589e-05,2]
[347756080,1736094656550,-850.42,9.589e-05,2]
[347756081,1736094656562,-1056.87,9.589e-05,2]
[347756082,1736094656574,-500.0,9.589e-05,2]
[347756083,1736094656587,-1324.44,9.589e-05,2]
[347756084,1736094656599,-500.0,9.589e-05,2]
[347756085,1736094656612,-1975.91,9.589e-05,2]
[347756086,1736094656624,-727.28,9.589e-05,2]
[347756087,1736094656636,-680.78,9.589e-05,2]
[347756088,1736094656648,-1645.11,9.589e-05,2]
[347756089,1736094656660,-2676.27,9.589e-05,2]
[347756090,1736094656674,-500.0,9.589e-05,2]
[347756091,1736094656686,-500.0,9.589e-05,2]
[347756092,1736094656700,-1747.24,9.589e-05,2]
[347756093,1736094656713,-500.0,9.589e-05,2]
[347756094,1736094656725,-150.0,9.592e-05,2]
[347756095,1736094656737,-150.0,9.592e-05,2]
[347756096,1736094656750,-150.0,9.592e-05,2]
[347756097,1736094656763,-186.89385327,9.592e-05,2]
[347756098,1736094656775,-150.0,9.592e-05,2]
[347756099,1736094656787,-150.0,9.592e-05,2]
[347756100,1736094656799,-150.0,9.619e-05,2]
[347756101,1736094656811,-150.0,9.646e-05,2]
[347756102,1736094656822,-150.0,9.668e-05,2]
[347756103,1736094656834,-150.0,9.674e-05,2]
[347756104,1736094656846,-150.0,9.701e-05,2]
[347756105,1736094656858,-150.0,9.71e-05,2]
[347756106,1736094656869,-399.53,9.721e-05,2]
[347756107,1736094656881,-150.0,9.728e-05,2]
[347756108,1736094656893,-150.0,9.744e-05,2]
[347756109,1736094656905,-150.0,9.756e-05,2]
[347756110,1736094656916,-1000.0,9.771e-05,2]
[347756111,1736094656929,-2344.53994181,9.78e-05,2]
[347756112,1736094656940,-150.0,9.783e-05,2]
[347756113,1736094656953,-2344.53994181,9.787e-05,2]
[347756114,1736094656965,-2344.53994181,9.793e-05,2]
[347756115,1736094656979,-2344.53994181,9.793e-05,2]
[347756116,1736094656995,-2344.53994181,9.793e-05,2]
[347756117,1736094657007,-2344.53994181,9.796e-05,2]
[347756118,1736094657019,-2083.99529807,9.8e-05,2]
[347756119,1736094657030,-150.0,9.81e-05,2]
[347756120,1736094657042,-150.0,9.82e-05,2]
[347756121,1736094657053,-150.0,9.829e-05,2]
[347756122,1736094657065,-150.0,9.838e-05,2]
[347756123,1736094657076,-565.23,9.862e-05,2]
[347756124,1736094657088,-1347.13,9.862e-05,2]
[347756125,1736094657100,-2292.04,9.862e-05,2]
[347756126,1736094657112,-1089.62,9.862e-05,2]
[347756127,1736094657124,-1194.71,9.862e-05,2]
[347756128,1736094657137,-3576.39,9.862e-05,2]
[347756129,1736094657148,-4463.52,9.862e-05,2]
[347756130,1736094657161,-519.79,9.862e-05,2]
[347756131,1736094657175,-500.0,9.863e-05,2]
[347756132,1736094657186,-500.0,9.863e-05,2]
[347756133,1736094657197,-500.0,9.863e-05,2]
[347756134,1736094657207,-500.0,9.863e-05,2]
[347756135,1736094657216,-1230.7,9.863e-05,2]
[347756136,1736094657226,-440.26797203,9.863e-05,2]
[347756137,1736094657235,-500.0,9.863e-05,2]
[347756138,1736094657244,-599.16,9.863e-05,2]
[347756139,1736094657254,-500.0,9.863e-05,2]
[347756140,1736094657263,-500.0,9.863e-05,2]
[347756141,1736094657273,-500.0,9.863e-05,2]
[347756142,1736094657283,-500.0,9.863e-05,2]
[347756143,1736094657294,-500.0,9.863e-05,2]
[347756144,1736094657303,-500.0,9.863e-05,2]
[347756145,1736094657312,-500.0,9.863e-05,2]
[347756146,1736094657323,-500.0,9.863e-05,2]
[347756147,1736094657333,-500.0,9.863e-05,2]
[347756148,1736094657343,-1808.48,9.863e-05,2]
[347756149,1736094657353,-500.0,9.863e-05,2]
[347756150,1736094657363,-500.0,9.863e-05,2]
[347756151,1736094657372,-500.0,9.863e-05,2]
[347756152,1736094657382,-500.0,9.863e-05,2]
[347756153,1736094657392,-500.0,9.863e-05,2]
[347756154,1736094657402,-716.91,9.863e-05,2]
[347756155,1736094657419,-500.0,9.863e-05,2]
[347756156,1736094657429,-500.0,9.863e-05,2]
[347756157,1736094657438,-1425.76,9.863e-05,2]
[347756158,1736094657449,-500.0,9.863e-05,2]
[347756159,1736094657459,-1615.98,9.863e-05,2]
[347756160,1736094657832,-500.0,9.863e-05,2]
[347756161,1736094657857,-500.0,9.863e-05,2]
[347756162,1736094657867,-500.0,9.863e-05,2]
[347756163,1736094657878,-500.0,9.863e-05,2]
[347756164,1736094657887,-500.0,9.863e-05,2]
[347756165,1736094657898,-500.0,9.863e-05,2]
[347756166,1736094657907,-2103.76,9.863e-05,2]
[347756167,1736094657917,-548.94,9.863e-05,2]
[347756168,1736094657926,-622.54,9.863e-05,2]
[347756169,1736094657936,-588.68,9.863e-05,2]
[347756170,1736094657947,-856.59,9.863e-05,2]
[347756171,1736094657956,-500.0,9.863e-05,2]
[347756172,1736094657966,-699.56,9.863e-05,2]
[347756173,1736094657975,-500.0,9.863e-05,2]
[347756174,1736094657984,-551.19,9.863e-05,2]
[347756175,1736094657994,-1746.71,9.863e-05,2]
[347756176,1736094658003,-500.0,9.863e-05,2]
[347756177,1736094658013,-742.17,9.863e-05,2]
[347756178,1736094658022,-500.0,9.863e-05,2]
[347756179,1736094658031,-608.14,9.863e-05,2]
[347756180,1736094658041,-558.83,9.863e-05,2]
[347756181,1736094658050,-500.0,9.863e-05,2]
[347756182,1736094658059,-812.77,9.863e-05,2]
[347756183,1736094658069,-569.03,9.863e-05,2]
[347756184,1736094658078,-500.0,9.863e-05,2]
[347756185,1736094658087,-500.0,9.863e-05,2]
[347756186,1736094658097,-500.0,9.863e-05,2]
[347756187,1736094658106,-500.0,9.863e-05,2]
[347756188,1736094658115,-661.71,9.863e-05,2]
[347756189,1736094658125,-696.27,9.863e-05,2]
[347756190,1736094658134,-687.79,9.863e-05,2]
[347756191,1736094658143,-942.62,9.863e-05,2]
[347756192,1736094658153,-500.0,9.863e-05,2]
[347756193,1736094658162,-556.61,9.863e-05,2]
[347756194,1736094658171,-719.4,9.863e-05,2]
[347756195,1736094658180,-631.65,9.863e-05,2]
[347756196,1736094658190,-832.23,9.863e-05,2]
[347756197,1736094658202,-5015.81,9.863e-05,2]
[347756198,1736094658212,-1675.1,9.863e-05,2]
[347756199,1736094658222,-677.54,9.863e-05,2]
[347756200,1736094658231,-543.04,9.863e-05,2]
[347756201,1736094658241,-500.0,9.863e-05,2]
[347756202,1736094658250,-627.27,9.863e-05,2]
[347756203,1736094658259,-500.0,9.863e-05,2]
[347756204,1736094658268,-1161.33,9.863e-05,2]
[347756205,1736094658278,-1050.4,9.863e-05,2]
[347756206,1736094658287,-500.0,9.863e-05,2]
[347756207,1736094658297,-500.0,9.863e-05,2]
[347756208,1736094658306,-500.0,9.863e-05,2]
[347756209,1736094658315,-724.87,9.863e-05,2]
[347756210,1736094658326,-500.0,9.863e-05,2]
[347756211,1736094658336,-500.0,9.863e-05,2]
[347756212,1736094658345,-631.04,9.863e-05,2]
[347756213,1736094658355,-500.0,9.863e-05,2]
[347756214,1736094658364,-594.95,9.863e-05,2]
[347756215,1736094658373,-1763.27,9.863e-05,2]
[347756216,1736094658383,-1113.55,9.863e-05,2]
[347756217,1736094658393,-500.0,9.863e-05,2]
[347756218,1736094658402,-500.0,9.863e-05,2]
[347756219,1736094658415,-500.0,9.863e-05,2]
[347756220,1736094658424,-752.27,9.863e-05,2]
[347756221,1736094658434,-500.0,9.863e-05,2]
[347756222,1736094658443,-714.85,9.863e-05,2]
[347756223,1736094658455,-816.25,9.863e-05,2]
[347756224,1736094658464,-620.8,9.863e-05,2]
[347756225,1736094658473,-500.0,9.863e-05,2]
[347756226,1736094658482,-621.01,9.863e-05,2]
[347756227,1736094658493,-500.0,9.863e-05,2]
[347756228,1736094658502,-500.0,9.863e-05,2]
[347756229,1736094658512,-541.62,9.863e-05,2]
[347756230,1736094658521,-500.0,9.863e-05,2]
[347756231,1736094658531,-601.13,9.863e-05,2]
[347756232,1736094658540,-738.48,9.863e-05,2]
[347756233,1736094658549,-500.0,9.863e-05,2]
[347756234,1736094658559,-500.0,9.863e-05,2]
[347756235,1736094658569,-1683.47,9.863e-05,2]
[347756236,1736094658580,-500.0,9.863e-05,2]
[347756237,1736094658589,-3134.03,9.863e-05,2]
[347756238,1736094658599,-745.35,9.863e-05,2]
[347756239,1736094658608,-836.0,9.863e-05,2]
[347756240,1736094658618,-736.47,9.863e-05,2]
[347756241,1736094658627,-500.0,9.863e-05,2]
[347756242,1736094658636,-500.0,9.863e-05,2]
[347756243,1736094658646,-580.42,9.863e-05,2]
[347756244,1736094658655,-500.0,9.863e-05,2]
[347756245,1736094658664,-500.0,9.863e-05,2]
[347756246,1736094658674,-500.0,9.863e-05,2]
[347756247,1736094658684,-520.75,9.863e-05,2]
[347756248,1736094658693,-500.0,9.863e-05,2]
[347756249,1736094658703,-500.0,9.863e-05,2]
[347756250,1736094658713,-1689.29,9.863e-05,2]
[347756251,1736094658723,-589.8,9.863e-05,2]
[347756252,1736094658733,-683.29,9.863e-05,2]
[347756253,1736094658743,-500.0,9.863e-05,2]
[347756254,1736094658753,-1085.9,9.863e-05,2]
[347756255,1736094658763,-500.0,9.863e-05,2]
[347756256,1736094658773,-500.0,9.863e-05,2]
[347756257,1736094658782,-1035.34,9.863e-05,2]
[347756258,1736094658792,-741.9,9.863e-05,2]
[347756259,1736094658802,-500.0,9.863e-05,2]
[347756260,1736094658811,-500.0,9.863e-05,2]
[347756261,1736094658820,-500.0,9.863e-05,2]
[347756262,1736094658830,-500.0,9.863e-05,2]
[347756263,1736094658839,-500.0,9.863e-05,2]
[347756264,1736094658849,-500.0,9.863e-05,2]
[347756265,1736094658858,-500.0,9.863e-05,2]
[347756266,1736094658867,-1834.08,9.863e-05,2]
[347756267,1736094658877,-500.0,9.863e-05,2]
[347756268,1736094658887,-552.82,9.863e-05,2]
[347756269,1736094658897,-731.46,9.863e-05,2]
[347756270,1736094658906,-904.93,9.863e-05,2]
[347756271,1736094658915,-500.0,9.863e-05,2]
[347756272,1736094658925,-500.0,9.863e-05,2]
[347756273,1736094658934,-557.27,9.863e-05,2]
[347756274,1736094658943,-793.93,9.863e-05,2]
[347756275,1736094658955,-500.0,9.863e-05,2]
[347756276,1736094658964,-811.3,9.863e-05,2]
[347756277,1736094658973,-527.7,9.863e-05,2]
[347756278,1736094658983,-500.0,9.863e-05,2]
[347756279,1736094658992,-500.0,9.863e-05,2]
[347756280,1736094659002,-1036.67,9.863e-05,2]
[347756281,1736094659011,-509.44,9.863e-05,2]
[347756282,1736094659020,-500.0,9.863e-05,2]
[347756283,1736094659030,-1405.71,9.863e-05,2]
[347756284,1736094659041,-500.0,9.863e-05,2]
[347756285,1736094659050,-1532.82,9.863e-05,2]
[347756286,1736094659066,-500.0,9.863e-05,2]
[347756287,1736094659078,-500.0,9.863e-05,2]
[347756288,1736094659087,-2813.87,9.863e-05,2]
[347756289,1736094659098,-799.48,9.863e-05,2]
[347756290,1736094659107,-605.75,9.863e-05,2]
[347756291,1736094659116,-500.0,9.863e-05,2]
[347756292,1736094659125,-500.0,9.863e-05,2]
[347756293,1736094659135,-659.28,9.863e-05,2]
[347756294,1736094659144,-2763.67,9.863e-05,2]
[347756295,1736094659152,-500.0,9.863e-05,2]
[347756296,1736094659162,-500.0,9.863e-05,2]
[347756297,1736094659171,-770.84,9.863e-05,2]
[347756298,1736094659180,-589.68,9.863e-05,2]
[347756299,1736094659189,-500.0,9.863e-05,2]
[347756300,1736094659200,-500.0,9.863e-05,2]
[347756301,1736094659209,-3068.98,9.863e-05,2]
[347756302,1736094659218,-633.08,9.863e-05,2]
[347756303,1736094659227,-779.8,9.863e-05,2]
[347756304,1736094659237,-1712.37,9.863e-05,2]
[347756305,1736094659246,-964.94,9.863e-05,2]
[347756306,1736094659255,-848.67,9.863e-05,2]
[347756307,1736094659264,-500.0,9.863e-05,2]
[347756308,1736094659273,-500.0,9.863e-05,2]
[347756309,1736094659282,-504.97,9.863e-05,2]
[347756310,1736094659291,-769.22,9.863e-05,2]
[347756311,1736094659301,-500.0,9.863e-05,2]
[347756312,1736094659310,-698.27,9.863e-05,2]
[347756313,1736094659320,-500.0,9.863e-05,2]
[347756314,1736094659329,-800.13,9.863e-05,2]
[347756315,1736094659338,-1626.49,9.863e-05,2]
[347756316,1736094659346,-1071.25,9.863e-05,2]
[347756317,1736094659356,-500.0,9.863e-05,2]
[347756318,1736094659367,-1143.16,9.863e-05,2]
[347756319,1736094659377,-565.51,9.863e-05,2]
[347756320,1736094659386,-972.29,9.863e-05,2]
[347756321,1736094659395,-1044.39,9.863e-05,2]
[347756322,1736094659405,-500.0,9.863e-05,2]
[347756323,1736094659418,-500.18,9.863e-05,2]
[347756324,1736094659427,-508.44,9.863e-05,2]
[347756325,1736094659436,-500.0,9.863e-05,2]
[347756326,1736094659444,-2154.529193,9.863e-05,2]
[347756327,1736094659457,-573.87,9.863e-05,2]
[347756328,1736094659466,-3065.2,9.863e-05,2]
[347756329,1736094659475,-160.465046,9.863e-05,2]
[347756330,1736094659484,-585.92,9.863e-05,2]
[347756331,1736094659494,-155.826197,9.863e-05,2]
[347756332,1736094659504,-500.0,9.863e-05,2]
[347756333,1736094659513,-765.52,9.863e-05,2]
[347756334,1736094659522,-640.34,9.863e-05,2]
[347756335,1736094659532,-3836.73,9.863e-05,2]
[347756336,1736094659541,-633.45,9.863e-05,2]
[347756337,1736094659550,-1291.16,9.863e-05,2]
[347756338,1736094659561,-1192.98,9.863e-05,2]
[347756339,1736094659570,-733.94,9.863e-05,2]
[347756340,1736094659580,-2011.44575,9.863e-05,2]
[347756341,1736094659590,-668.19,9.863e-05,2]
[347756342,1736094659599,-722.24,9.863e-05,2]
[347756343,1736094659608,-525.52,9.863e-05,2]
[347756344,1736094659617,-2191.22,9.863e-05,2]
[347756345,1736094659627,-1871.54,9.863e-05,2]
[347756346,1736094659637,-1429.21,9.863e-05,2]
[347756347,1736094659646,-1747.17,9.863e-05,2]
[347756348,1736094659657,-6128.46,9.863e-05,2]
[347756349,1736094659666,-554.84,9.863e-05,2]
[347756350,1736094659676,-500.0,9.863e-05,2]
[347756351,1736094659686,-813.74,9.863e-05,2]
[347756352,1736094659695,-1657.86,9.863e-05,2]
[347756353,1736094659706,-515.2,9.863e-05,2]
[347756354,1736094659717,-3771.13,9.863e-05,2]
[347756355,1736094659727,-500.0,9.863e-05,2]
[347756356,1736094659736,-823.18,9.863e-05,2]
[347756357,1736094659746,-902.42,9.863e-05,2]
[347756358,1736094659755,-795.93,9.863e-05,2]
[347756359,1736094659765,-500.0,9.863e-05,2]
[347756360,1736094659775,-710.7,9.863e-05,2]
[347756361,1736094659784,-1012.76,9.863e-05,2]
[347756362,1736094659793,-890.9,9.863e-05,2]
[347756363,1736094659803,-1433.4,9.863e-05,2]
[347756364,1736094659813,-5091.48,9.863e-05,2]
[347756365,1736094659822,-500.0,9.863e-05,2]
[347756366,1736094659831,-4235.77,9.863e-05,2]
[347756367,1736094659841,-1053.35,9.863e-05,2]
[347756368,1736094659850,-158.30937,9.863e-05,2]
[347756369,1736094659860,-992.85,9.863e-05,2]
[347756370,1736094659870,-624.79,9.863e-05,2]
[347756371,1736094659879,-633.76,9.863e-05,2]
[347756372,1736094659889,-578.47,9.863e-05,2]
[347756373,1736094659898,-2200.96,9.863e-05,2]
[347756374,1736094659908,-1537.22,9.863e-05,2]
[347756375,1736094659917,-900.08,9.863e-05,2]
[347756376,1736094659927,-4458.65,9.863e-05,2]
[347756377,1736094659936,-163.360118,9.863e-05,2]
[347756378,1736094659945,-1934.39,9.863e-05,2]
[347756379,1736094659955,-1315.15,9.863e-05,2]
[347756380,1736094659965,-500.0,9.863e-05,2]
[347756381,1736094659974,-546.5,9.863e-05,2]
[347756382,1736094659984,-510.63,9.863e-05,2]
[347756383,1736094659994,-748.91,9.863e-05,2]
[347756384,1736094660003,-3147.69,9.863e-05,2]
[347756385,1736094660014,-500.0,9.863e-05,2]
[347756386,1736094660023,-571.68,9.863e-05,2]
[347756387,1736094660033,-479.96775288,9.863e-05,2]
[347756388,1736094660044,-500.0,9.863e-05,2]
[347756389,1736094660056,-857.37,9.863e-05,2]
[347756390,1736094660066,-772.45,9.863e-05,2]
[347756391,1736094660077,-2261.04,9.863e-05,2]
[347756392,1736094660087,-500.0,9.863e-05,2]
[347756393,1736094660096,-574.97,9.863e-05,2]
[347756394,1736094660107,-1517.49,9.863e-05,2]
[347756395,1736094660117,-1136.66,9.863e-05,2]
[347756396,1736094660127,-601.24,9.863e-05,2]
[347756397,1736094660138,-3679.45,9.863e-05,2]
[347756398,1736094660148,-573.25606293,9.863e-05,2]
[347756399,1736094660158,-801.92,9.863e-05,2]
[347756400,1736094660168,-2296.67,9.863e-05,2]
[347756401,1736094660178,-511.65,9.863e-05,2]
[347756402,1736094660188,-716.67,9.863e-05,2]
[347756403,1736094660199,-500.0,9.863e-05,2]
[347756404,1736094660209,-1000.95,9.863e-05,2]
[347756405,1736094660219,-2823.47,9.863e-05,2]
[347756406,1736094660229,-869.41,9.863e-05,2]
[347756407,1736094660238,-702.57,9.863e-05,2]
[347756408,1736094660248,-1961.5,9.863e-05,2]
[347756409,1736094660258,-1511.92,9.863e-05,2]
[347756410,1736094660268,-980.35,9.863e-05,2]
[347756411,1736094660278,-1573.26,9.863e-05,2]
[347756412,1736094660288,-152.483732,9.863e-05,2]
[347756413,1736094660297,-716.72,9.863e-05,2]
[347756414,1736094660308,-3227.6,9.863e-05,2]
[347756415,1736094660318,-685.49,9.863e-05,2]
[347756416,1736094660329,-812.36,9.863e-05,2]
[347756417,1736094660338,-1820.78,9.863e-05,2]
[347756418,1736094660348,-158.068307,9.863e-05,2]
[347756419,1736094660358,-2219.13,9.863e-05,2]
[347756420,1736094660370,-574.8,9.863e-05,2]
[347756421,1736094660380,-826.26,9.863e-05,2]
[347756422,1736094660390,-1688.51,9.863e-05,2]
[347756423,1736094660400,-1052.05,9.863e-05,2]
[347756424,1736094660413,-3518.04,9.863e-05,2]
[347756425,1736094660423,-1016.28,9.863e-05,2]
[347756426,1736094660432,-659.66,9.863e-05,2]
[347756427,1736094660443,-500.0,9.863e-05,2]
[347756428,1736094660454,-500.0,9.863e-05,2]
[347756429,1736094660464,-500.0,9.863e-05,2]
[347756430,1736094660473,-588.33,9.863e-05,2]
[347756431,1736094660484,-753.31,9.863e-05,2]
[347756432,1736094660494,-2262.5,9.863e-05,2]
[347756433,1736094660504,-500.0,9.863e-05,2]
[347756434,1736094660514,-500.0,9.863e-05,2]
[347756435,1736094660523,-6438.35,9.863e-05,2]
[347756436,1736094660532,-150.133036,9.863e-05,2]
[347756437,1736094660542,-874.96,9.863e-05,2]
[347756438,1736094660552,-913.17,9.863e-05,2]
[347756439,1736094660561,-1116.37,9.863e-05,2]
[347756440,1736094660571,-919.19,9.863e-05,2]
[347756441,1736094660581,-500.0,9.863e-05,2]
[347756442,1736094660591,-648.72,9.863e-05,2]
[347756443,1736094660600,-1766.84,9.863e-05,2]
[347756444,1736094660610,-758.57,9.863e-05,2]
[347756445,1736094660619,-506.41,9.863e-05,2]
[347756446,1736094660628,-151.072624,9.863e-05,2]
[347756447,1736094660638,-1972.52,9.863e-05,2]
[347756448,1736094660647,-863.83,9.863e-05,2]
[347756449,1736094660658,-500.0,9.863e-05,2]
[347756450,1736094660667,-500.0,9.863e-05,2]
[347756451,1736094660677,-500.0,9.863e-05,2]
[347756452,1736094660687,-500.0,9.863e-05,2]